Cogmind - Beta 16 @@@ ROGUE MODE // 2025.11.16 @ 23:27:06 Player: Lis Result: Destroyed by YI-UF0 with YI-UF0's Doublenader Performance ------------- Evolutions (0) 0 Regions Visited (2) 400 Robots Destroyed (15) 75 Value Destroyed (464) 464 Prototype IDs (2) 40 Alien Tech Used (0) 0 Bonus (0) 0 TOTAL SCORE: 979 Bonus ------- None Cogmind --------- Core Integrity 0/250 Matter 260/300 Energy 96/100 System Corruption 1% Temperature Cool (0) Movement Walking (120) Location -10/Mines Parts ------- > --- POWER (1) -------- (None) > --- PROPULSION (2) --- Aluminum Leg > --- UTILITY (2) ------ Small Storage Unit ECM Suite > --- WEAPON (2) ------- Light Assault Rifle > --- INVENTORY (8) ---- Ion Engine Ion Engine Ion Engine Small Storage Unit Huge Storage Unit Datajack Peak State ------------ > --- POWER ------------ Ion Engine > --- PROPULSION ------- Aluminum Leg Aluminum Leg > --- UTILITY ---------- Improved Heat Sink Small Storage Unit > --- WEAPON ----------- EM Pulse Gun Light Assault Rifle > --- INVENTORY -------- Ion Engine Ion Engine Aluminum Leg Aluminum Leg Huge Storage Unit EM Pulse Gun Grenade Launcher Grenade Launcher [Rating: 9] Favorites ----------- Power Ion Engine Engine Ion Engine Propulsion Aluminum Leg Leg Aluminum Leg Utility Small Storage Unit Device ECM Suite Storage Small Storage Unit Weapon Light Assault Rifle Energy Gun EM Pulse Gun Ballistic Gun Light Assault Rifle Launcher Grenade Launcher Build | -11 -10 -10 ------- Run | Yrd Mat Min Slots Evolved . | . . . Power . | . . . Propulsion . | . . . Utility . | . . . Weapon . | . . . Parts Attached 22 | 6 12 4 Power 5 | 1 4 . Engine 5 | 1 4 . Core . | . . . Reactor . | . . . Propulsion 5 | 2 3 . Treads . | . . . Leg 5 | 2 3 . Wheel . | . . . Hover . | . . . Flight . | . . . Utility 6 | 1 4 1 Device 3 | . 3 . Storage 3 | 1 1 1 Processor . | . . . Hackware . | . . . Protection . | . . . Artifact . | . . . Weapon 6 | 2 1 3 Energy Gun 2 | 1 1 . Energy Cannon . | . . . Ballistic Gun 3 | 1 . 2 Ballistic Cannon . | . . . Launcher 1 | . . 1 Special Weapon . | . . . Impact Weapon . | . . . Slashing Weapon . | . . . Piercing Weapon . | . . . Special Melee Weapon . | . . . Unidentified Prototypes . | . . . Parts Lost 8 | . 2 6 Power 1 | . . 1 Propulsion 2 | . . 2 Utility . | . . . Weapon 5 | . 2 3 Highest Loss Streak 4 | . 1 4 To Critical Strikes . | . . . Average Backups 6 | 1 6 7 Power 2 | . 1 3 Propulsion 1 | . 1 . Utility . | . . 1 Weapon 1 | . 1 . Tool/Special . | . . . Unused Backups 6 | . 5 1 Power 1 | . 1 . Propulsion 2 | . 2 . Utility . | . . . Weapon 2 | . 2 . Tool/Special 1 | . . 1 Average Slot Usage (%) 90 | . 89 92 Engine 13 | . 14 13 Leg 26 | . 26 27 Device 10 | . 9 14 Storage 14 | . 14 14 Energy Gun 7 | . 11 . Ballistic Gun 13 | . 13 13 Launcher 2 | . . 9 Peak Build Rating 9 | 6 9 7 Average Rating 6 | 4 6 6 On Entrance 4 | . 6 6 Avg Prop Armor Cover (%) . | . . . Naked Turns . | . . . Heaviest Build 16 | 13 14 16 Greatest Support 20 | 20 20 20 Greatest Overweight (x) 1 | 1 1 1 Average Overweight (x) . | . . . Largest Inventory Capacity 25 | 8 25 8 Average Capacity 7 | 7 8 8 Most Carried 8 | 2 8 8 Average Carried 6 | 1 6 7 Final Capacity 8 | 8 8 8 Final Carried 7 | 2 7 6 Class Distribution -------------------- 100% | Mutant Dominant Class ---------------- Mutant | -10/Materials Mutant | -10/Mines Resources | -11 -10 -10 ----------- Run | Yrd Mat Min Matter Collected 522 | 172 268 82 Remotely . | . . . Salvage Created 541 | . 511 30 Parts 37 | . 29 8 Haulers Intercepted . | . . . Recyclers Shooed 3 | . 3 . Parts Field Recycled . | . . . Retrieved Matter . | . . . Parts Self-Destructed . | . . . Prevented . | . . . Parts Restored . | . . . Kills | -11 -10 -10 ------- Run | Yrd Mat Min Combat Hostiles Destroyed 13 | . 11 2 Guns 11 | . 10 1 AOE 2 | . 1 1 Classes Destroyed 4 | . 2 2 Builder 1 | . . 1 Operator 1 | . 1 . Swarmer 2 | . . 2 Grunt 11 | . 11 . Best Kill Streak 5 | . 5 2 Combat Bots Only 4 | . 4 1 Max Kills in Single Turn 1 | . 1 1 Gunslinging . | . . . Exploded 1 | . 1 1 Melee . | . . . Uniques/NPCs Destroyed . | . . . Combat | -11 -10 -10 -------- Run | Yrd Mat Min Hostile Shots Fired 90 | . 61 29 Missed 27 | . 19 8 Hits 63 | . 42 21 Projectile 63 | . 42 21 AOE 18 | . . 18 Critical Strikes 2 | . 1 1 Damage Taken 1107 | . 528 579 Core 259 | . 88 171 Absorbed by Shields . | . . . Core Remaining (%) 100 | 100 . . Volleys Fired 67 | . 56 11 Largest 2 | . 2 2 Hottest 60 | . 60 50 Shots Fired 117 | . 97 20 Gun 110 | . 97 13 Cannon . | . . . Launcher 7 | . . 7 Special . | . . . Kinetic 69 | . 56 13 Thermal . | . . . Explosive 7 | . . 7 Electromagnetic 41 | . 41 . Robot Hit Streak 17 | . 17 4 Robot Miss Streak 3 | . 3 3 Penetration Max . | . . . Secondary Targets 1 | . 1 . Max Gunslinging Chain 1 | . 1 . Shots Hit Robots 75 | . 66 9 Core Hits 34 | . 28 6 Critical Kills . | . . . Critical Parts Destroyed . | . . . Critical Strikes 1 | . 1 . Corrupt 1 | . 1 . Melee Attacks . | . . . Impact . | . . . Slashing . | . . . Piercing . | . . . Sneak Attacks . | . . . Combat Hostiles . | . . . Follow-up Attacks . | . . . Damage Inflicted 981 | . 788 193 Guns 754 | . 698 56 Cannons . | . . . Explosions 220 | . 87 133 Melee . | . . . Ramming 7 | . 3 4 Kinetic 377 | . 321 56 Thermal 87 | . 87 . Explosive 133 | . . 133 Electromagnetic 377 | . 377 . Impact . | . . . Slashing . | . . . Piercing . | . . . Highest Corruption 1 | . 1 1 Average Corruption 1 | . 1 1 Corruption Purged . | . . . Corruption Blocked . | . . . Effects 3 | . . 3 Message Errors 1 | . . 1 Matter Fused 1 | . . 1 Misfires 1 | . . 1 Overload Shots . | . . . Overflow Damage 2 | . . 2 Projectiles . | . . . Explosions 2 | . . 2 Melee . | . . . Knockbacks . | . . . Impact . | . . . Kinetic . | . . . Secondary . | . . . Self-Inflicted Damage 72 | . . 72 Shots 3 | . . 3 Rammed . | . . . Targets Rammed 4 | . 3 1 Kicked 4 | . 3 1 Crushed . | . . . Highest Temperature 76 | . 76 20 Average Temperature 24 | . 26 9 Received Heat Transfer 321 | . 321 . Siege Activations . | . . . Martial Activations . | . . . Shielding Activations . | . . . Robots Disrupted . | . . . Combat Hostiles . | . . . Robots Corrupted . | . . . Combat Hostiles . | . . . Parts Fried . | . . . Impact Corruptions . | . . . Robots Melted . | . . . Combat Hostiles . | . . . Parts Melted . | . . . Heat Transferred 50 | . 50 . Parts Sabotaged . | . . . Parts Stolen . | . . . Parts Stripped . | . . . Power Chain Reactions 1 | . 1 . Alert | -11 -10 -10 ------- Run | Yrd Mat Min Maximum Alert Level . | . . . Low Security (%) 100 | 100 100 100 Level 1 . | . . . Level 2 . | . . . Level 3 . | . . . Level 4 . | . . . Level 5 . | . . . High Security . | . . . Max Security . | . . . Peak Influence 107 | . 107 30 Initial 28 | . . 28 Average 40 | . 59 10 Influence Increases 407 | . 330 77 Destroy 0b10 Robot/C 260 | . 220 40 Destroy 0b10 Robot/NC 10 | . 5 5 Destroy Leader 70 | . 60 10 Successful Hack 10 | . 10 . Disable Machine 15 | . 15 . Destroy Structure 27 | . 5 22 Partial Spotted 15 | . 15 . Influence Decreases 407 | . 255 152 Entered New Map 47 | . . 47 Time Decay 319 | . 235 84 Lost Part 41 | . 20 21 Squads Dispatched 3 | . 3 . Investigation 1 | . 1 . Extermination . | . . . Reinforcement 2 | . 2 . Assault . | . . . Garrison . | . . . Intercept . | . . . Searches Triggered . | . . . Construction Impeded . | . . . Haulers Reinforced . | . . . Active Scanning Responses . | . . . Cargo Convoy Interrupts . | . . . Stealth | -11 -10 -10 --------- Run | Yrd Mat Min Distress Signals 3 | . 3 . Communications Jammed . | . . . Distress Signals . | . . . Times Spotted 22 | . 16 6 Peak Tracking Total 4 | . 4 3 Tactical Retreats 2 | . . 2 ECM-based Alert Blocks 1 | . . 1 Traps | -11 -10 -10 ------- Run | Yrd Mat Min Traps Triggered 3 | . 3 . Indirectly . | . . . Trap Hack Attempts . | . . . Triggered . | . . . Disarmed . | . . . Reprogrammed . | . . . Reused . | . . . Traps Extracted . | . . . Installed . | . . . Triggered . | . . . Machines | -11 -10 -10 ---------- Run | Yrd Mat Min Machines Disabled 1 | . 1 . Max in Single Turn 1 | . 1 . Machines Repaired . | . . . Machines Dismantled . | . . . Machines Sabotaged . | . . . Overloaded Fab Kills . | . . . Hacking | -11 -10 -10 --------- Run | Yrd Mat Min Machines Accessed 5 | . 5 . Terminals 4 | . 4 . Fabricators . | . . . Repair Stations . | . . . Recycling Units 1 | . 1 . Scanalyzers . | . . . Garrison Access . | . . . Total Hacks 11 | . 11 . Successful 5 | . 5 . Failed 6 | . 6 . Catastrophic 1 | . 1 . Database Lockouts . | . . . Manual . | . . . Terminals 9 | . 9 . Fabricators . | . . . Repair Stations . | . . . Recycling Units 2 | . 2 . Scanalyzers . | . . . Garrison Access . | . . . Terminal Hacks 4 | . 4 . Prototype ID Bank 1 | . 1 . Patrol Status 1 | . 1 . Hauler Manifests 1 | . 1 . Zone Layout 1 | . 1 . Fabricator Hacks . | . . . Repair Station Hacks . | . . . Recycling Unit Hacks 1 | . 1 . Retrieve Components 1 | . 1 . Scanalyzer . | . . . Garrison Access Hacks . | . . . Unauthorized Hacks . | . . . Terminals . | . . . Fabricators . | . . . Repair Stations . | . . . Recycling Units . | . . . Scanalyzers . | . . . Garrison Access . | . . . Data Cores Recovered . | . . . Used . | . . . Hacking Detections 4 | . 4 . Full Trace Events 1 | . 1 . Feedback Events 1 | . 1 . Corruption 1 | . 1 . Feedback Blocked . | . . . Robot Schematics Acquired . | . . . Robots Built . | . . . Authchips . | . . . Time . | . . . Total Robot Build Rating . | . . . Part Schematics Acquired . | . . . Parts Built . | . . . Authchips . | . . . Time . | . . . Total Part Build Rating . | . . . Part Studies Acquired . | . . . Parts Repaired . | . . . Time . | . . . Parts Recycled . | . . . Recycled Matter . | . . . Retrieved Matter . | . . . Retrieved Components 3 | . 3 . Parts Scanalyzed . | . . . Part Schematics Acquired . | . . . Parts Damaged . | . . . Bothacking | -11 -10 -10 ------------ Run | Yrd Mat Min Used RIF Installer . | . . . Robots Hacked . | . . . Non-combat . | . . . Combat . | . . . Robot Hacks Applied . | . . . Relay Couplers Released . | . . . Fabnet Peak Effective % . | . . . Robots Rewired . | . . . Allies Hacked . | . . . Hacks Repelled . | . . . Allies | -11 -10 -10 -------- Run | Yrd Mat Min Total Allies . | . . . Largest Group . | . . . Highest-Rated Group . | . . . Highest-Rated Ally . | . . . Total Orders . | . . . Ally Attacks . | . . . Total Damage . | . . . Kills . | . . . Allies Corrupted . | . . . Allies Melted . | . . . Intel | -11 -10 -10 ------- Run | Yrd Mat Min Active Infowar (turns) 349 | . 76 273 ECM 349 | . 76 273 Robot Analysis Total . | . . . Derelict Logs Recovered . | . . . Drone Launches . | . . . Drone Recoveries . | . . . Exploration | -11 -10 -10 ------------- Run | Yrd Mat Min Turns Passed 939 | 69 597 273 Spaces Moved 557 | 42 326 189 Core 6 | 6 . . Treads . | . . . Legs 551 | 36 326 189 Wheels . | . . . Hover . | . . . Flight . | . . . Fastest Speed 50 | 50 120 120 Average Speed 126 | 138 126 121 Slowest Speed 190 | 190 190 190 Overloaded Moves . | . . . Propulsion Burnouts . | . . . Robots Hopped . | . . . Potential Cave-ins . | . . . Cave-ins Triggered . | . . . Exploration Rate (%) 40 | 4 58 59 Regions Visited 2 Branch Regions 1 Pre-discovered Areas . | . . . Known Exits Taken . | . . . Unknown Exits Taken 2 | 1 1 . Scrap Searched 1 | . . 1 Spaces Dug . | . . . Terrain Destroyed 43 | . 4 39 Melee . | . . . Projectile . | . . . AOE 43 | . 4 39 Terrain Rammed . | . . . Walls Destroyed . | . . . Machines Disabled . | . . . Actions | -11 -10 -10 --------- Run | Yrd Mat Min Total 685 | 50 421 214 Wait 10 | . 3 7 Move 555 | 41 325 189 Hop . | . . . Pick Up 13 | 3 9 1 Fast Attach 11 | 5 5 1 Attach 6 | 1 2 3 Detach . | . . . Swap 10 | . 9 1 Drop 9 | . 9 . Fire 67 | . 56 11 Melee . | . . . Ram . | . . . Kick 4 | . 3 1 Crush . | . . . Escape Stasis . | . . . Rewire . | . . . Trap . | . . . Miscellaneous . | . . . Route ------- -11/Scrapyard -10/Materials (discovered 3 exits: [*Mat x2] / [*Min]) -10/Mines (discovered 2 exits: [*Mat] / [*Exi]) History --------- Turn | Location | Event 27 | -11/Scrapyard | Discovered new exit (range 15) 70 | -11/Scrapyard | Entered Materials 304 | -10/Materials | Build established: Mutant 392 | -10/Materials | Discovered new exit (range 15) 600 | -10/Materials | Discovered new exit (range 14) 617 | -10/Materials | Discovered new exit (range 16) 667 | -10/Materials | Entered Mines 699 | -10/Mines | Deemed a non-threat by the Exiles lab entrance 699 | -10/Mines | Discovered new exit (range 5) 913 | -10/Mines | Discovered new exit (range 15) 926 | -10/Mines | Core integrity fell below 50% 934 | -10/Mines | Core integrity fell below 20% 940 | -10/Mines | Destroyed by YI-UF0 with YI-UF0's Doublenader Last Messages --------------- 00911_ K-01 Serf destroyed. 00913_ EXIT=FOUND 00914_ The unstable cave ceiling collapses. 00914_ R-06 Scavenger collects Structural Scanner. 00916_ K-01 Serf collects debris. 00917_ The unstable cave ceiling collapses. 00920_ K-01 Serf collects debris. 00922_ The unstable cave ceiling collapses. 00924_ K-01 Serf collects debris. 00925_ T-07 Excavator destroyed. 00926_ The unstable cave ceiling collapses. 00929_ K-01 Serf collects debris. 00931_ Grenade Launcher destroyed. 00933_ The unstable cave ceiling collapses. 00933_ K-01 Serf collects debris. 00935_ Ion Engine destroyed. 00935_ Aluminum Leg destroyed. 00936_ The unstable cave ceiling collapses. 00937_ Lgt. Assault Rifle destroyed. 00938_ The unstable cave ceiling collapses. Map ----- +----------------------------------------------------+ | ?????????????????# #???????????## ###???# ## | | ?????????????????# #?############ ##??# # | | ?????????????????# #?# ##?# # | | ?????????????##### ### ########## #?# # | | ?????????????# #????????## #?# # | | ?????????????# #########????????## #?# ## | | ?????????????# #????????????????# ##?# ## | | ?????????????# #????????????????# ####??## | | ?????????????# #######??????????# ##??????### | | ???????# ##### ## # #??????????##??????????## | | ???????# ##??????????????????????#### | | ???????######## ###???????????????????????# | | ??????????????# #???????????????????????? | | ??????????????# ##???????????????????????? | | ??????######?## ## #???????????????????????? | | ?????## # # #???????????????????????? | | ????## ## ####???????????????????????? | | ????# # #????????????????????????? | | ?????????### % # ######??????###?????????? | | ??????????# # ## ## #???? ??????????? | | ??????????# ## ## #### # ?????????? | | ??????????# # ; ! ????????? | | ??????????# # =% <% ????????? | | ??????????# # # # [= ???????? | | ?????????# # #?????????? | | ???????? ## @ [ #?????????? | | ??????? #?# #????????? | | ?????? ####??# # #?????????? | | ?????##???????# # # #?????????? | | ??????????????# ### ###?????????? | | ??????????????# g ??????????? | | ??????????????# ?????????? | | ??????????????## #??????????? | | ???????????????# = #####??????????? | | ???????????????## ##??????????????? | | ????????????????### #???????????????? | | ?????????????????? # ####???????????????? | | ????????????????? ###??????????????????? | | ????????????????? ????????????????????? | | ?????????????????? ????????????????????? | | ????????????????? # ?????????????????????? | | ??????????????????? #?##????????????????????????? | | ????????????????????????????????????????????????? | | ????????????????????????????????????????????????? | | ????????????????????????????????????????????????? | | ???????????????????????????????????????????????? | | ????????????????????????????????????????????????? | | ????????????????????????????????????????????????? | | ????????????????????????????????????????????????? | | ????????????????????????????????????????????????? | +----------------------------------------------------+ Best States ------------- Heat Dissipation 39 Energy Generation 10 Energy Capacity 250 Matter Stores 300 Matter Capacity 300 Sight Range 16 Terrain Scan Density 10 ECM Strength 1 Evasion (%) 55 Item Schematics ----------------- None Robot Schematics ------------------ None Fabricated ------------ Nothing Repaired ---------- Nothing Studied --------- None Alien Tech Used ----------------- None Achievements -------------- Maybe Next Time I'll Detach My Launcher Challenges ------------ None Game ------ Seed AntimatterDirectedPurifier Manual? 0 Play Time 00:20:07 Cumulative 13.0 hours Start 2025.11.16 @ 23:07:26 End 2025.11.16 @ 23:27:06 Sessions 1 Manual Loads 0 Difficulty Rogue Special Mode None Game No. 15 Rogue 15 Adventurer 0 Explorer 0 Win Type - Total 0 Types 0/0/0/0/0/0/0/0/0/0 Lore% 2 Gallery% 16 Achievement% 13 Wizard Run 0 Options --------- Layout 1 ASCII 1 Keyboard 1 Movement Numpad Keybinds 0 Fullscreen 1 Font 32/SmallcapsGlow Map View 77x35 Zoom Use 0% Tactical HUD 1 Map Filters NONE Filters NONE Steam 1 RUN: da8d4b61-230b-4159-bb14-4f11b71ed81b